fUST/lending_fUST_20240126
["ID","MTS","AMOUNT","RATE_DAILY","PERIOD"]
[312768017,1706201441115,-154.98450155,0.00035,2]
[312768019,1706201441124,-476.44274189,0.00035,4]
[312768021,1706201441134,-2359.3181247,0.00035,2]
[312768023,1706201441143,-564.16006176,0.00035,2]
[312768025,1706201441153,-184.66976843,0.00035,2]
[312768036,1706201441254,-592.34900571,0.00035,2]
[312768038,1706201441264,-657.40715545,0.00035,7]
[312768040,1706201441274,-157.894736,0.00035008,2]
[312768042,1706201441284,-305.942503,0.00035029,2]
[312768044,1706201441293,-1081.1,0.00035616,2]
[312768046,1706201441304,-1081.1,0.00035616,2]
[312768048,1706201441317,-1081.1,0.00035616,2]
[312768050,1706201441327,-1081.1,0.00035616,2]
[312768052,1706201441336,-1081.1,0.00035616,2]
[312768054,1706201441345,-1081.1,0.00035616,2]
[312768056,1706201441355,-1081.1,0.00035616,2]
[312768058,1706201441364,-1081.1,0.00035616,2]
[312768060,1706201441374,-1081.1,0.00035616,2]
[312768062,1706201441383,-1081.1,0.00035616,2]
[312768064,1706201441393,-1081.1,0.00035616,2]
[312768066,1706201441402,-1081.1,0.00035616,2]
[312768068,1706201441412,-1081.1,0.00035616,2]
[312768070,1706201441425,-1081.1,0.00035616,2]
[312768072,1706201441437,-1081.1,0.00035616,2]
[312768073,1706201441447,-1081.1,0.00035616,2]
[312768075,1706201441456,-1081.1,0.00035616,2]
[312768077,1706201441466,-1081.1,0.00035616,2]
[312768079,1706201441475,-1081.1,0.00035616,2]
[312768081,1706201441485,-1081.1,0.00035616,2]
[312768083,1706201441498,-1081.1,0.00035616,2]
[312768085,1706201441508,-1081.1,0.00035616,2]
[312768087,1706201441517,-1081.1,0.00035616,2]
[312768089,1706201441527,-1081.19102445,0.00035616,2]
[312768091,1706201441536,-157.894736,0.00035616,2]
[312768093,1706201441546,-154.98450155,0.00036,4]
[312768095,1706201441556,-269.0,0.00036,2]
[312768097,1706201441564,-269.0,0.00036,2]
[312768099,1706201441574,-269.0,0.00036,2]
[312768101,1706201441584,-305.942503,0.00036008,2]
[312768103,1706201441592,-157.894736,0.00036225,2]
[312768105,1706201441603,-157.894736,0.00036834,2]
[312768107,1706201441612,-305.942503,0.00036986,2]
[312768109,1706201441622,-8392.09761733,0.00037112,2]
[312768111,1706201441631,-157.894736,0.00037443,2]
[312768113,1706201441640,-150.0,0.00037707,2]
[312768115,1706201441649,-155.0,0.000378,2]
[312768117,1706201441659,-305.942503,0.00037965,2]
[312768119,1706201441668,-157.894736,0.00038052,2]
[312768121,1706201441677,-200.0,0.00038055,15]
[312768123,1706201441689,-200.0,0.00038055,15]
[312768125,1706201441698,-368.0,0.00038055,15]
[312768127,1706201441707,-200.0,0.000382,4]
[312768129,1706201441717,-647.74157226,0.00038368,2]
[312768131,1706201441726,-2147.50028627,0.000385,4]
[312768133,1706201441736,-157.894736,0.0003866,2]
[312768135,1706201441746,-233.62993,0.000387,2]
[312768137,1706201441755,-500.0,0.00038799,15]
[312768139,1706201441765,-500.0,0.00038799,15]
[312768141,1706201441776,-500.0,0.00038799,15]
[312768143,1706201441785,-500.0,0.00038799,15]
[312768145,1706201441795,-500.0,0.00038799,15]
[312768147,1706201441804,-500.0,0.00038799,15]
[312768149,1706201441813,-500.0,0.00038799,15]
[312768151,1706201441822,-500.0,0.00038799,15]
[312768153,1706201441832,-500.0,0.00038799,15]
[312768156,1706201441841,-500.0,0.00038799,15]
[312768157,1706201441850,-500.0,0.00038799,15]
[312768160,1706201441860,-500.0,0.00038799,15]
[312768161,1706201441869,-170.59411888,0.00038799,15]
[312768164,1706201441878,-500.0,0.00038799,15]
[312768165,1706201441887,-500.0,0.00038799,15]
[312768167,1706201441896,-500.0,0.00038799,15]
[312768169,1706201441905,-500.0,0.00038799,15]
[312768171,1706201441914,-500.0,0.00038799,15]
[312768173,1706201441923,-500.0,0.00038799,15]
[312768175,1706201441932,-500.0,0.00038799,15]
[312768177,1706201441941,-500.0,0.00038799,15]
[312768179,1706201441951,-500.0,0.00038799,15]
[312768181,1706201441960,-500.0,0.00038799,15]
[312768183,1706201441969,-500.0,0.00038799,15]
[312768185,1706201441978,-500.0,0.00038799,15]
[312768187,1706201441987,-500.0,0.00038799,15]
[312768189,1706201441996,-500.0,0.00038799,15]
[312768191,1706201442004,-651.83922557,0.00038799,15]
[312768193,1706201442014,-500.0,0.00038799,15]
[312768194,1706201442024,-500.0,0.00038799,15]
[312768195,1706201442033,-500.0,0.00038799,15]
[312768196,1706201442043,-500.0,0.00038799,15]
[312768197,1706201442053,-500.0,0.00038799,15]
[312768198,1706201442063,-500.0,0.00038799,15]
[312768199,1706201442074,-409.32301523,0.00038799,15]
[312768200,1706201442083,-500.0,0.00038799,15]
[312768201,1706201442092,-500.0,0.00038799,15]
[312768202,1706201442101,-500.0,0.00038799,15]
[312768203,1706201442110,-500.0,0.00038799,15]
[312768204,1706201442119,-500.0,0.00038799,15]
[312768205,1706201442128,-500.0,0.00038799,15]
[312768206,1706201442138,-500.0,0.00038799,15]
[312768207,1706201442147,-500.0,0.00038799,15]
[312768208,1706201442156,-500.0,0.00038799,15]
[312768209,1706201442165,-500.0,0.00038799,15]
[312768210,1706201442174,-500.0,0.00038799,15]
[312768211,1706201442184,-427.39032001,0.00038799,15]
[312768212,1706201442193,-500.0,0.00038799,15]
[312768213,1706201442203,-500.0,0.00038799,15]
[312768214,1706201442213,-500.0,0.00038799,15]
[312768215,1706201442222,-500.0,0.00038799,15]
[312768216,1706201442231,-500.0,0.00038799,15]
[312768217,1706201442241,-500.0,0.00038799,15]
[312768218,1706201442251,-500.0,0.00038799,15]
[312768219,1706201442260,-632.13552078,0.00038799,15]
[312768220,1706201442270,-500.0,0.00038799,15]
[312768221,1706201442280,-500.0,0.00038799,15]
[312768222,1706201442289,-500.0,0.00038799,15]
[312768223,1706201442299,-500.0,0.00038799,15]
[312768225,1706201442309,-500.0,0.00038799,15]
[312768226,1706201442318,-500.0,0.00038799,15]
[312768227,1706201442327,-324.54867869,0.00038799,15]
[312768229,1706201442336,-500.0,0.00038799,15]
[312768231,1706201442345,-500.0,0.00038799,15]
[312768232,1706201442355,-500.0,0.00038799,15]
[312768233,1706201442363,-500.0,0.00038799,15]
[312768234,1706201442372,-554.51466592,0.00038799,15]
[312768235,1706201442381,-521.90227233,0.00038799,15]
[312768236,1706201442391,-500.0,0.00038799,15]
[312768237,1706201442401,-132579.5791607,0.000388,10]
[312768238,1706201442457,-488240.91575325,0.000388,10]
[312768239,1706201442474,-6314.42132233,0.000388,10]
[312768240,1706201442638,-1416.02167727,0.00023355,2]
[312768241,1706201442647,-8985.70965701,0.000388,10]
[312768277,1706201445020,-153.0,0.00029315,2]
[312768278,1706201445030,-199.3339408,0.00029315,2]
[312768279,1706201445039,-60.92544685,0.00029315,2]
[312768280,1706201445077,-92.07455315,0.00029315,2]
[312768281,1706201445087,-3638.15315713,0.0003879,3]
[312768282,1706201445098,-2243.53042003,0.0003879,3]
[312768283,1706201445109,-614.11330842,0.0003879,3]
[312768284,1706201445120,-1002.12245872,0.0003879,3]
[312768310,1706201446811,-7205.3106557,0.0003879,3]
[312768312,1706201446820,-1916.17728481,0.000388,10]
[312768374,1706202062401,155.01240099,0.00020958,4]
[312768375,1706202084391,155.01240099,0.00020324,4]
[312768376,1706202100402,155.01240099,0.00020324,4]
[312768377,1706202124411,155.01240099,0.00020324,4]
[312768378,1706202142405,155.01240099,0.00020324,4]
[312768379,1706202162400,155.01240099,0.00020324,4]
[312768380,1706202180459,155.01240099,0.00020324,4]
[312768381,1706202202460,155.01240099,0.00020324,4]
[312768389,1706202500540,222.041207,0.00019345,2]
[312768423,1706202633484,-1583.23422085,0.000202,2]
[312768424,1706202633495,-351.89959347,0.00020201,2]
[312768425,1706202633506,-679.03304923,0.00020201,2]
[312768426,1706202633516,-850.73963902,0.00020202,2]
[312768427,1706202633526,-979.83287199,0.00020203,2]
[312768447,1706202637831,-218.78476764,0.00020203,2]
[312768449,1706202637842,-421.518259,0.00020222,2]
[312768455,1706202637893,-308.75217237,0.00020222,2]
[312768457,1706202637904,-301.10768316,0.00020224,2]
[312768459,1706202637914,-200.0,0.00020323,2]
[312768461,1706202637922,-200.0,0.00020323,2]
[312768463,1706202637932,-250.0,0.00020323,2]
[312768465,1706202637941,-250.0,0.00020323,2]
[312768467,1706202637950,-2085.40450746,0.00020324,2]
[312768470,1706202637959,-300.0,0.00020324,2]
[312768471,1706202637968,-470.87385711,0.00020552,2]
[312768472,1706202637977,-2074.94658461,0.00020552,2]
[312768473,1706202637986,-2104.41067508,0.00020552,2]
[312768474,1706202637995,-24900.0,0.00020554,2]
[312768475,1706202638005,-168.641972,0.00021476,2]
[312768476,1706202638015,-166.666666,0.00021918,2]
[312768477,1706202638024,-293.39580768,0.00022,4]
[312768478,1706202638033,-3970.33105698,0.00022,2]
[312768479,1706202638042,-426.19756797,0.00022,2]
[312768480,1706202638051,-200.0,0.00022354,7]
[312768487,1706202638158,-166.666666,0.00022431,2]
[312768489,1706202638167,-166.666666,0.00022944,2]
[312768491,1706202638176,-1416.02167727,0.00023,2]
[312768493,1706202638185,-166.666666,0.00023456,2]
[312768495,1706202638195,-166.666666,0.00023969,2]
[312768497,1706202638204,-166.666666,0.00024482,2]
[312768499,1706202638213,-280.0,0.0002459,7]
[312768501,1706202638222,-212.2386522,0.00024658,2]
[312768503,1706202638231,-167.71599843,0.000249,2]
[312768505,1706202638240,-16207.96,0.0002498,3]
[312768507,1706202638249,-23339.46,0.0002499,3]
[312768509,1706202638258,-19449.55,0.0002499,3]
[312768511,1706202638268,-25347.50051164,0.00025,2]
[312768513,1706202638277,-155.01240099,0.00025,2]
[312768515,1706202638287,-4725.91421399,0.00025,2]
[312768517,1706202638296,-7385.90525508,0.00025,2]
[312768519,1706202638305,-274.65114385,0.00025637,2]
[312768521,1706202638315,-290.53836744,0.00027,2]
[312768523,1706202638324,-391.0,0.00027049,15]
[312768525,1706202638333,-508.40167916,0.00028,2]
[312768527,1706202638342,-311.91244819,0.00028496,2]
[312768529,1706202638352,-309.31860756,0.00028497,2]
[312768531,1706202638361,-8653.83689169,0.00028497,2]
[312768533,1706202638370,-4011.78855735,0.00028497,2]
[312768535,1706202638379,-500.0,0.00028497,2]
[312768537,1706202638387,-170.03961878,0.00028497,2]
[312768539,1706202638398,-571.33828928,0.00028497,2]
[312768541,1706202638407,-512.38921039,0.00028497,2]
[312768543,1706202638416,-350.0,0.00028497,2]
[312768545,1706202638426,-500.0,0.00028497,2]
[312768547,1706202638435,-500.0,0.00028497,2]
[312768549,1706202638445,-500.0,0.00028497,2]
[312768551,1706202638455,-500.0,0.00028497,2]
[312768553,1706202638464,-377.65972868,0.00028497,2]
[312768555,1706202638473,-165.75185927,0.00028497,2]
[312768557,1706202638483,-276000.0,0.00028498,2]
[312768559,1706202638492,-16794.35324464,0.000289,2]
[312768561,1706202638501,-1932.44477539,0.00029,2]
[312768563,1706202638510,-155.0,0.00029,2]
[312768565,1706202638520,-833.4574876,0.00029,2]
[312768567,1706202638529,-2038.7168945,0.00029,2]
[312768569,1706202638541,-155.0,0.00029,2]
[312768571,1706202638551,-153.0,0.00029178,2]
[312768573,1706202638560,-153.0,0.00029178,2]
[312768575,1706202638569,-153.0,0.00029178,2]
[312768577,1706202638578,-153.0,0.00029178,2]
[312768579,1706202638588,-153.0,0.00029178,2]
[312768581,1706202638596,-153.0,0.00029315,2]
[312768583,1706202638606,-230.3948546,0.00029315,2]
[312768585,1706202638615,-153.0,0.00029315,2]
[312768587,1706202638625,-153.0,0.00029315,2]
[312768589,1706202638635,-153.0,0.00029315,2]
[312768591,1706202638644,-199.3339408,0.00029315,2]
[312768593,1706202638658,-153.0,0.00029315,2]
[312768596,1706202638669,-153.0,0.00029315,2]
[312768597,1706202638678,-199.3339408,0.00029315,2]
[312768600,1706202638688,-153.0,0.00029315,2]
[312768601,1706202638698,-250.5513808,0.00029315,2]
[312768604,1706202638707,-153.0,0.00029315,2]
[312768606,1706202638717,-171.7059798,0.00029315,2]
[312768608,1706202638726,-199.3339408,0.00029315,2]
[312768609,1706202638735,-153.0,0.00029315,2]
[312768611,1706202638747,-153.0,0.00029315,2]
[312768613,1706202638756,-153.0,0.00029315,2]
[312768614,1706202638769,-153.0,0.00029315,2]
[312768616,1706202638779,-153.0,0.00029315,2]
[312768618,1706202638788,-153.0,0.00029315,2]
[312768619,1706202638798,-153.0,0.00029315,2]
[312768621,1706202638808,-199.3339408,0.00029315,2]
[312768623,1706202638817,-153.0,0.00029315,2]
[312768625,1706202638826,-153.0,0.00029315,2]
[312768626,1706202638835,-153.0,0.00029315,2]
[312768628,1706202638845,-153.0,0.00029315,2]
[312768630,1706202638855,-153.0,0.00029315,2]
[312768631,1706202638864,-153.0,0.00029315,2]
[312768633,1706202638873,-199.3339408,0.00029315,2]
[312768634,1706202638882,-153.0,0.00029315,2]
[312768636,1706202638891,-153.0,0.00029315,2]
[312768638,1706202638904,-153.0,0.00029315,2]
[312768640,1706202638912,-153.0,0.00029315,2]
[312768642,1706202638921,-199.3339408,0.00029315,2]
[312768643,1706202638930,-153.0,0.00029315,2]
[312768645,1706202638939,-153.0,0.00029315,2]
[312768646,1706202638949,-153.0,0.00029315,2]
[312768648,1706202638958,-153.0,0.00029315,2]
[312768650,1706202638968,-153.0,0.00029315,2]
[312768651,1706202638979,-199.3339408,0.00029315,2]
[312768652,1706202638989,-153.0,0.00029315,2]
[312768653,1706202638998,-153.0,0.00029315,2]
[312768654,1706202639007,-153.0,0.00029589,2]
[312768655,1706202639016,-200.0,0.00029753,15]
[312768656,1706202639025,-348.0,0.00029753,15]
[312768657,1706202639034,-2543.41353878,0.0002979,7]
[312768658,1706202639044,-291.31420188,0.0003,3]
[312768659,1706202639053,-2372.54255137,0.0003,2]
[312768660,1706202639062,-1000.0,0.0003,4]
[312768661,1706202639072,-155.0,0.0003,4]
[312768662,1706202639081,-688.78830185,0.0003,4]
[312768663,1706202639090,-139264.62830083,0.0003,4]
[312768664,1706202639099,-244.31917233,0.0003,4]
[312768665,1706202639108,-155.74648817,0.0003,4]
[312768666,1706202639117,-166.95729913,0.0003,2]
[312768667,1706202639126,-1106.18433682,0.0003,2]
[312768668,1706202639135,-2350.83227316,0.0003,2]
[312768669,1706202639145,-6202.72987763,0.0003,2]
[312768670,1706202639158,-2195.13400402,0.0003,2]
[312768671,1706202639167,-4988.57079427,0.0003,3]
[312768672,1706202639176,-18606.04614329,0.0003,2]
[312768673,1706202639185,-700.57786282,0.0003,2]
[312768674,1706202639194,-797.64547304,0.0003,23]
[312768675,1706202639203,-217.0,0.0003,2]
[312768676,1706202639212,-153.0,0.00030137,2]
[312768677,1706202639221,-153.0,0.00030137,2]
[312768678,1706202639230,-153.0,0.00030137,2]
[312768679,1706202639239,-153.0,0.00030137,2]
[312768680,1706202639248,-153.0,0.00030137,2]
[312768681,1706202639258,-153.0,0.00030137,2]
[312768682,1706202639267,-153.0,0.00030137,2]
[312768683,1706202639275,-153.0,0.00030137,2]
[312768684,1706202639284,-153.0,0.00030137,2]
[312768685,1706202639293,-153.0,0.00030137,2]
[312768687,1706202639302,-153.0,0.00030137,2]
[312768689,1706202639311,-153.0,0.00030137,2]
[312768690,1706202639319,-153.0,0.00030137,2]
[312768692,1706202639329,-153.0,0.00030137,2]
[312768693,1706202639337,-199.3339408,0.00030137,2]
[312768694,1706202639346,-199.3339408,0.00030137,2]
[312768695,1706202639355,-199.3339408,0.00030137,2]
[312768696,1706202639364,-199.3339408,0.00030137,2]
[312768697,1706202639373,-199.3339408,0.00030137,2]
[312768698,1706202639383,-199.3339408,0.00030137,2]
[312768699,1706202639393,-199.3339408,0.00030137,2]
[312768700,1706202639404,-153.0,0.00030137,2]
[312768701,1706202639414,-153.0,0.00030137,2]
[312768702,1706202639423,-153.0,0.00030137,2]
[312768703,1706202639433,-157.3764171,0.00030137,2]
[312768704,1706202639445,-153.0,0.00030137,2]
[312768705,1706202639455,-197.0668724,0.00030137,2]
[312768706,1706202639465,-366.1405559,0.00030137,2]
[312768707,1706202639474,-157.894736,0.00030137,2]
[312768708,1706202639483,-305.942503,0.00030137,2]
[312768709,1706202639493,-155.0,0.0003037,2]
[312768710,1706202639502,-517.23074286,0.00030494,2]
[312768711,1706202639513,-8541.73966669,0.00030494,2]
[312768712,1706202639523,-427.08698334,0.00030494,2]
[312768713,1706202639532,-2643.590422,0.00030494,2]
[312768714,1706202639541,-157.894736,0.00030746,2]
[312768715,1706202639552,-326.58097042,0.00031,7]
[312768716,1706202639562,-308477.0925742,0.00031,2]
[312768717,1706202639571,-305.942503,0.00031115,2]
[312768718,1706202639581,-157.894736,0.00031355,2]
[312768719,1706202639590,-155.0,0.0003174,2]
[312768720,1706202639599,-157.894736,0.00031963,2]
[312768721,1706202639608,-9502.11081765,0.00032,10]
[312768722,1706202639617,-3137.0499637,0.00032,2]
[312768723,1706202639626,-305.942503,0.00032094,2]
[312768724,1706202639636,-233.62993,0.000321,2]
[312768725,1706202639645,-157.894736,0.00032572,2]
[312768726,1706202639655,-200.0,0.00032729,15]
[312768727,1706202639664,-200.0,0.00032729,15]
[312768728,1706202639674,-368.0,0.00032729,15]
[312768729,1706202639683,-26240.767231,0.00032877,2]
[312768730,1706202639693,-155.0,0.0003298,2]
[312768731,1706202639702,-155.0,0.00033,4]
[312768732,1706202639711,-276.02916029,0.00033,2]
[312768733,1706202639720,-2849.23045787,0.00033,2]
[312768734,1706202639729,-2028.23697359,0.00033,2]
[312768735,1706202639738,-32630.78087586,0.00033,10]
[312768736,1706202639747,-200.0,0.00033,4]
[312768737,1706202639762,-166.0,0.00033,2]
[312768738,1706202639771,-217.0,0.00033,2]
[312768739,1706202639780,-217.0,0.00033,2]
[312768740,1706202639789,-305.942503,0.00033072,2]
[312768741,1706202639800,-155.0,0.0003311,2]
[312768742,1706202639809,-157.894736,0.00033181,2]
[312768743,1706202639819,-157.894736,0.0003379,2]
[312768744,1706202639829,-500.0,0.00033885,7]
[312768745,1706202639839,-500.0,0.00033885,7]
[312768746,1706202639848,-612.51477852,0.00033885,7]
[312768747,1706202639920,-500.0,0.00033885,7]
[312768748,1706202639938,-500.0,0.00033885,7]
[312768749,1706202639947,-590.11891124,0.00033885,7]
[312768750,1706202639956,-500.0,0.00033885,7]
[312768751,1706202639965,-500.0,0.00033885,7]
[312768752,1706202639974,-500.0,0.00033885,7]
[312768753,1706202639983,-500.0,0.00033885,7]
[312768754,1706202639992,-300.0,0.00033885,7]
[312768755,1706202640001,-520.14469953,0.00033885,7]
[312768756,1706202640010,-500.0,0.00033885,7]
[312768757,1706202640019,-500.0,0.00033885,7]
[312768758,1706202640027,-500.0,0.00033885,7]
[312768759,1706202640037,-500.0,0.00033885,7]
[312768760,1706202640046,-500.0,0.00033885,7]
[312768761,1706202640055,-500.0,0.00033885,7]
[312768762,1706202640064,-500.0,0.00033885,7]
[312768763,1706202640073,-500.0,0.00033885,7]
[312768764,1706202640081,-500.0,0.00033885,7]
[312768765,1706202640091,-439.06173158,0.00033885,7]
[312768766,1706202640100,-500.0,0.00033885,7]
[312768767,1706202640109,-500.0,0.00033885,7]
[312768768,1706202640118,-500.0,0.00033885,7]
[312768769,1706202640128,-500.0,0.00033885,7]
[312768770,1706202640137,-500.0,0.00033885,7]
[312768771,1706202640148,-500.0,0.00033885,7]
[312768772,1706202640157,-500.0,0.00033885,7]
[312768773,1706202640166,-500.0,0.00033885,7]
[312768774,1706202640175,-500.0,0.00033885,7]
[312768775,1706202640184,-500.0,0.00033885,7]
[312768776,1706202640193,-500.0,0.00033885,7]
[312768777,1706202640202,-500.0,0.00033885,7]
[312768778,1706202640211,-500.0,0.00033885,7]
[312768779,1706202640220,-500.0,0.00033885,7]
[312768780,1706202640229,-374.54867869,0.00033885,7]
[312768781,1706202640238,-500.0,0.00033885,7]
[312768782,1706202640247,-500.0,0.00033885,7]
[312768783,1706202640256,-409.32301523,0.00033885,7]
[312768784,1706202640265,-500.0,0.00033885,7]
[312768785,1706202640274,-500.0,0.00033885,7]
[312768786,1706202640283,-500.0,0.00033885,7]
[312768787,1706202640292,-500.0,0.00033885,7]
[312768788,1706202640301,-500.0,0.00033885,7]
[312768789,1706202640310,-500.0,0.00033885,7]
[312768790,1706202640319,-500.0,0.00033885,7]
[312768791,1706202640328,-500.0,0.00033885,7]
[312768792,1706202640337,-500.0,0.00033885,7]
[312768793,1706202640346,-500.0,0.00033885,7]
[312768794,1706202640355,-500.0,0.00033885,7]
[312768795,1706202640364,-500.0,0.00033885,7]
[312768796,1706202640373,-500.0,0.00033885,7]
[312768797,1706202640382,-500.0,0.00033885,7]
[312768798,1706202640391,-516.7407421,0.00033885,7]
[312768799,1706202640401,-500.0,0.00033885,7]
[312768800,1706202640410,-500.0,0.00033885,7]
[312768801,1706202640419,-500.0,0.00033885,7]
[312768802,1706202640428,-500.0,0.00033885,7]
[312768803,1706202640437,-500.0,0.00033885,7]
[312768804,1706202640447,-500.0,0.00033885,7]
[312768805,1706202640457,-500.0,0.00033885,7]
[312768806,1706202640466,-500.0,0.00033885,7]
[312768807,1706202640475,-500.0,0.00033885,7]
[312768808,1706202640484,-500.0,0.00033885,7]
[312768809,1706202640493,-500.0,0.00033885,7]
[312768810,1706202640502,-500.0,0.00033885,7]
[312768811,1706202640511,-500.0,0.00033885,7]
[312768812,1706202640520,-596.04394774,0.00033885,7]
[312768813,1706202640530,-500.0,0.00033885,7]
[312768815,1706202640539,-500.0,0.00033885,7]
[312768816,1706202640549,-500.0,0.00033885,7]
[312768817,1706202640558,-500.0,0.00033885,7]
[312768819,1706202640567,-500.0,0.00033885,7]
[312768820,1706202640576,-500.0,0.00033885,7]
[312768821,1706202640585,-500.0,0.00033885,7]
[312768822,1706202640595,-500.0,0.00033885,7]
[312768823,1706202640604,-500.0,0.00033885,7]
[312768824,1706202640613,-627.39032001,0.00033885,7]
[312768825,1706202640622,-500.0,0.00033885,7]
[312768826,1706202640631,-500.0,0.00033885,7]
[312768827,1706202640641,-500.0,0.00033885,7]
[312768828,1706202640653,-500.0,0.00033885,7]
[312768830,1706202640663,-229.58995767,0.00033885,7]
[312768832,1706202640672,-500.0,0.00033885,7]
[312768834,1706202640682,-50000.0,0.00033886,3]
[312768835,1706202640691,-29097.63930594,0.00033886,3]
[312768838,1706202640854,-20902.36069406,0.00033886,3]
[312768839,1706202640866,-50000.0,0.00033886,3]
[312768840,1706202640876,-50000.0,0.00033886,3]
[312768841,1706202640885,-27470.35267011,0.00033886,3]
[312768842,1706202640907,-22900.14498021,0.00033886,3]
[312768843,1706202640917,-3158.75,0.00033886,2]
[312768844,1706202640927,-28479.82304548,0.00033886,2]
[312768845,1706202640936,-2233.25470997,0.00033886,3]
[312768908,1706202646066,-280.4,0.00029178,2]
[312768909,1706202646078,-25.6,0.00029178,2]
[312768910,1706202646086,-153.0,0.00029315,2]
[312768911,1706202646095,-199.3339408,0.00029315,2]
[312768912,1706202646186,-153.0,0.00029315,2]
[312768913,1706202646194,-217.0,0.00033885,2]
[312768914,1706202646203,-1143.02830579,0.00033885,4]
[312768915,1706202646212,-2309.21082625,0.00033886,3]
[312768992,1706203265114,322.03216375,0.000185,2]
[312768999,1706203353594,548.19506989,0.000185,2]
[312769000,1706203363737,1482.07644451,0.000185,5]
[312769001,1706203373592,434.57757914,0.000185,2]
[312769031,1706203831949,-351.89959347,0.00019998,2]
[312769032,1706203831959,-403.91119802,0.00019999,2]
[312769033,1706203831968,-151.953216,0.0002,2]
[312769034,1706203831978,-679.03304923,0.0002,2]
[312769035,1706203831987,-850.73963902,0.0002,2]
[312769036,1706203831996,-1198.61763963,0.0002,2]
[312769037,1706203832006,-168.641972,0.00020623,2]
[312769038,1706203832016,-470.87385711,0.00021682,2]
[312769040,1706203832025,-2074.94658461,0.00021682,2]
[312769042,1706203832035,-1583.23422085,0.00021683,2]
[312769044,1706203832044,-24234.25235815,0.00021684,2]
[312769073,1706203837999,-567.84798942,0.00021684,2]
[312769079,1706203838057,-97.89965243,0.00021684,2]
[312769081,1706203838066,-166.666666,0.00021918,2]
[312769083,1706203838075,-236.72154547,0.00021974,2]
[312769085,1706203838084,-1129.04995843,0.00021999,5]
[312769087,1706203838094,-156.56685875,0.00022,4]
[312769089,1706203838103,-426.19756797,0.00022,2]
[312769091,1706203838115,-967.49976328,0.00022,2]
[312769093,1706203838126,-3002.8312937,0.00022,2]
[312769095,1706203838135,-166.666666,0.00022431,2]
[312769097,1706203838146,-166.666666,0.00022944,2]
[312769099,1706203838156,-1416.02167727,0.00023,2]
[312769101,1706203838166,-166.666666,0.00023456,2]
[312769103,1706203838174,-167.777172,0.00023561,2]
[312769104,1706203838183,-166.666666,0.00023969,2]
[312769106,1706203838192,-166.666666,0.00024482,2]
[312769108,1706203838204,-312.2386522,0.00024658,2]
[312769110,1706203838213,-4725.91421399,0.00025,2]
[312769112,1706203838222,-7385.90525508,0.00025,2]
[312769114,1706203838231,-155.02015262,0.00025,2]
[312769116,1706203838241,-200.0,0.00025298,7]
[312769118,1706203838250,-274.65114385,0.00025547,2]
[312769120,1706203838259,-976.79905731,0.00025556,2]
[312769122,1706203838268,-155.02015262,0.00025556,4]
[312769124,1706203838277,-290.53836744,0.00027,2]
[312769126,1706203838286,-155.0,0.00027398,2]
[312769128,1706203838295,-280.0,0.00027828,15]
[312769130,1706203838304,-19449.55,0.00028377,3]
[312769132,1706203838314,-8653.83689169,0.00028386,2]
[312769134,1706203838323,-311.91244819,0.00028386,2]
[312769136,1706203838332,-309.31860756,0.00028386,2]
[312769138,1706203838341,-23339.46,0.00028387,3]